[Event "95th Caplin Hastings Congress"]
[Site "Hastings"]
[Date "2019.12.28"]
[Round "1.17"]
[White "Fishbein, Alexander"]
[Black "Graham, David B"]
[Result "1-0"]
[ECO "E62"]
[WhiteElo "2435"]
[BlackElo "2152"]
[Annotator "NA"]
[PlyCount "81"]
[EventDate "2019.12.28"]
[EventType "swiss"]
[EventCountry "ENG"]
[SourceTitle "playchess.com"]
[Source "ChessBase"]
[SourceQuality "1"]
[TimeControl "40/6600+30:3000+30"]

1. Nf3 {[%emt 0:09:40]} Nf6 {[%emt 0:09:40]} 2. c4 {[%emt 0:00:13]} g6 {[%emt 0:00:18]} 3. Nc3 {[%emt 0:01:23]} Bg7 {[%emt 0:00:06]} 4. g3 {[%emt 0:03:36]} d6 {[%emt 0:00:19]} 5. Bg2 {[%emt 0:00:06]} O-O {[%emt 0:00:14]} 6. d4 {[%emt 0:00:05]} Nc6 {[%emt 0:00:31]} 7. O-O {[%emt 0:00:06]} Bg4 {[%emt 0:00:34]} 8. d5 {[%emt 0:02:45]} Na5 {[%emt 0:00:21]} 9. Nd2 {[%emt 0:01:57]} c5 {[%emt 0:00:39]} 10. Qc2 {[%emt 0:03:35]} a6 {[%emt 0:02:59]} 11. a4 {[%emt 0:05:15]} e5 {[%emt 0:11:30]} 12. b3 {[%emt 0:13:27]} Ne8 {[%emt 0:06:17]} 13. Bb2 {[%emt 0:03:43]} b6 {[%emt 0:10:18]} 14. Rae1 {[%emt 0:00:30]} Ra7 {[%emt 0:01:16]} 15. f4 {[%emt 0:06:10]} exf4 {[%emt 0:07:48]} 16. gxf4 {[%emt 0:00:35]} f5 {[%emt 0:02:41]} 17. h3 {[%emt 0:07:09]} Bh5 {[%emt 0:01:23]} 18. e4 {[%emt 0:05:02]} Bd4+ {[%emt 0:02:31]} 19. Kh2 {[%emt 0:01:42]} Qh4 {[%emt 0:08:57]} 20. e5 {[%emt 0:23:04]} Re7 {[%emt 0:07:12]} 21. e6 {[%emt 0:06:26]} Nf6 {[%emt 0:02:09]} 22. Kh1 {[%emt 0:03:56]} Bg4 {[%emt 0:23:00]} 23. Kh2 {[%emt 0:11:59]} Nh5 {[%emt 0:10:11]} 24. Qd3 {[%emt 0:01:06]} Bf2 {[%emt 0:04:57]} 25. Rxf2 {[%emt 0:01:30]} Qxf2 {[%emt 0:00:03]} 26. Qe3 {[%emt 0:01:05]} Qxf4+ {[%emt 0:01:34]} 27. Qxf4 {[%emt 0:00:22]} Nxf4 {[%emt 0:00:05]} 28. hxg4 {[%emt 0:00:18]} Nd3 {[%emt 0:01:19]} 29. Rb1 {[%emt 0:00:20]} Nxb2 {[%emt 0:02:11]} 30. Rxb2 {[%emt 0:00:04]} Nb7 {[%emt 0:02:20]} 31. gxf5 {[%emt 0:00:38]} gxf5 {[%emt 0:00:06]} 32. b4 {[%emt 0:00:46]} Rf6 {[%emt 0:01:11]} 33. bxc5 {[%emt 0:00:29]} bxc5 {[%emt 0:00:20]} 34. Ne2 {[%emt 0:01:24]} Rh6+ {[%emt 0:00:46]} 35. Bh3 {[%emt 0:01:02]} Rh4 {[%emt 0:00:51]} 36. Kg3 {[%emt 0:00:27]} Rh5 {[%emt 0:00:09]} 37. Nf4 {[%emt 0:00:37]} Rg7+ {[%emt 0:00:13]} 38. Kf3 {[%emt 0:01:19]} Rhg5 {[%emt 0:00:11]} 39. Nf1 {[%emt 0:00:56]} h6 {[%emt 0:01:02]} 40. Ne3 {[%emt 0:00:27]} Rg3+ {[%emt 0:00:23]} 41. Kf2 {[%emt 0:01:26]} 1-0

[Event "95th Caplin Hastings Congress"]
[Site "Hastings"]
[Date "2019.12.28"]
[Round "1.18"]
[White "Fishbein, Mitch"]
[Black "Hebden, Mark L"]
[Result "1/2-1/2"]
[ECO "E97"]
[WhiteElo "2151"]
[BlackElo "2433"]
[Annotator "NA"]
[PlyCount "189"]
[EventDate "2019.12.28"]
[EventType "swiss"]
[EventCountry "ENG"]
[SourceTitle "playchess.com"]
[Source "ChessBase"]
[SourceQuality "1"]
[TimeControl "40/6600+30:3000+30"]

1. Nf3 {[%emt 0:09:49]} Nf6 {[%emt 0:09:40]} 2. c4 {[%emt 0:00:11]} g6 {[%emt 0:00:23]} 3. Nc3 {[%emt 0:00:18]} Bg7 {[%emt 0:00:09]} 4. e4 {[%emt 0:00:28]} d6 {[%emt 0:00:10]} 5. d4 {[%emt 0:00:20]} O-O {[%emt 0:00:07]} 6. Be2 {[%emt 0:00:20]} e5 {[%emt 0:00:09]} 7. O-O {[%emt 0:00:17]} Nc6 {[%emt 0:00:06]} 8. Be3 {[%emt 0:00:15]} Ng4 {[%emt 0:01:20]} 9. Bg5 {[%emt 0:00:23]} f6 {[%emt 0:04:22]} 10. Bc1 {[%emt 0:00:17]} f5 {[%emt 0:05:22]} 11. Bg5 {[%emt 0:00:27]} Qe8 {[%emt 0:06:09]} 12. exf5 {[%emt 0:01:04]} gxf5 {[%emt 0:04:35]} 13. dxe5 {[%emt 0:00:52]} dxe5 {[%emt 0:01:30]} 14. Nd5 {[%emt 0:00:58]} Qf7 {[%emt 0:05:22]} 15. Bd2 {[%emt 0:01:22]} Nf6 {[%emt 0:02:53]} 16. Ng5 {[%emt 0:43:34]} Qd7 {[%emt 0:00:55]} 17. Bc3 {[%emt 0:10:11]} h6 {[%emt 0:02:57]} 18. Nh3 {[%emt 0:10:48]} Ne4 {[%emt 0:02:36]} 19. Be1 {[%emt 0:00:53]} Nd4 {[%emt 0:02:44]} 20. f3 {[%emt 0:02:33]} Ng5 {[%emt 0:01:16]} 21. Nf2 {[%emt 0:04:25]} c6 {[%emt 0:01:09]} 22. Ne3 {[%emt 0:03:26]} Qf7 {[%emt 0:03:58]} 23. Nc2 {[%emt 0:04:09]} c5 {[%emt 0:03:10]} 24. Nxd4 {[%emt 0:02:36]} exd4 {[%emt 0:03:13]} 25. Nd3 {[%emt 0:04:41]} Qe7 {[%emt 0:05:47]} 26. Bd2 {[%emt 0:01:36]} b6 {[%emt 0:02:03]} 27. Nf4 {[%emt 0:00:54]} Qf7 {[%emt 0:00:20]} 28. Bd3 {[%emt 0:01:28]} Bb7 {[%emt 0:01:00]} 29. Qc2 {[%emt 0:01:34]} Rae8 {[%emt 0:02:06]} 30. Rae1 {[%emt 0:04:38]} Bc8 {[%emt 0:03:00]} 31. Qc1 {[%emt 0:02:57]} Be5 {[%emt 0:06:58]} 32. Nd5 {[%emt 0:02:37]} f4 {[%emt 0:02:03]} 33. Nxf4 {[%emt 0:02:52]} Bxf4 {[%emt 0:01:47]} 34. Rxe8 {[%emt 0:00:39]} Bxh2+ {[%emt 0:00:48]} 35. Kxh2 {[%emt 0:00:43]} Rxe8 {[%emt 0:00:11]} 36. Kg1 {[%emt 0:01:00]} Bf5 {[%emt 0:00:59]} 37. Qc2 {[%emt 0:04:25]} Bxd3 {[%emt 0:03:37]} 38. Qxd3 {[%emt 0:00:00]} Kg7 {[%emt 0:00:24]} 39. Re1 {[%emt 0:00:00]} Rxe1+ {[%emt 0:00:35]} 40. Bxe1 {[%emt 0:00:00]} Qe6 {[%emt 0:00:20]} 41. Bg3 {[%emt 0:04:42]} Nf7 {[%emt 0:02:26]} 42. b3 {[%emt 0:02:45]} Nd8 {[%emt 0:00:25]} 43. Kf2 {[%emt 0:02:17]} Nc6 {[%emt 0:00:11]} 44. Qe2 {[%emt 0:05:31]} Qg6 {[%emt 0:01:04]} 45. Qe4 {[%emt 0:01:21]} Qxe4 {[%emt 0:00:38]} 46. fxe4 {[%emt 0:00:05]} Kf6 {[%emt 0:00:35]} 47. Bc7 {[%emt 0:01:57]} Ke6 {[%emt 0:01:32]} 48. Ke2 {[%emt 0:05:14]} h5 {[%emt 0:01:12]} 49. Kd2 {[%emt 0:01:46]} Nb4 {[%emt 0:01:07]} 50. Bb8 {[%emt 0:03:58]} Kd7 {[%emt 0:00:20]} 51. a3 {[%emt 0:03:14]} Nc6 {[%emt 0:00:21]} 52. Bf4 {[%emt 0:00:17]} Na5 {[%emt 0:02:38]} 53. Kc2 {[%emt 0:00:46]} Kc6 {[%emt 0:00:25]} 54. a4 {[%emt 0:01:12]} a6 {[%emt 0:01:58]} 55. Bd2 {[%emt 0:02:07]} Nb7 {[%emt 0:04:40]} 56. Kd3 {[%emt 0:01:45]} Kd6 {[%emt 0:00:30]} 57. Bf4+ {[%emt 0:00:26]} Kd7 {[%emt 0:00:21]} 58. Bg3 {[%emt 0:01:26]} Na5 {[%emt 0:01:18]} 59. Kc2 {[%emt 0:00:14]} Nc6 {[%emt 0:01:51]} 60. Kd2 {[%emt 0:01:13]} Nd8 {[%emt 0:00:24]} 61. Kd3 {[%emt 0:00:46]} Ne6 {[%emt 0:00:10]} 62. Ke2 {[%emt 0:04:13]} Kc6 {[%emt 0:03:53]} 63. Kd3 {[%emt 0:04:48]} b5 {[%emt 0:00:00]} 64. axb5+ {[%emt 0:00:14]} axb5 {[%emt 0:00:00]} 65. cxb5+ {[%emt 0:00:55]} Kxb5 {[%emt 0:00:00]} 66. Bd6 {[%emt 0:01:11]} Kb4 {[%emt 0:03:21]} 67. g3 {[%emt 0:01:50]} Kb5 {[%emt 0:00:39]} 68. Be5 {[%emt 0:01:54]} Kc6 {[%emt 0:01:54]} 69. Kc4 {[%emt 0:00:50]} Ng5 {[%emt 0:00:25]} 70. Kd3 {[%emt 0:00:45]} Nf3 {[%emt 0:02:03]} 71. Bf4 {[%emt 0:00:57]} Ng1 {[%emt 0:02:44]} 72. Kc4 {[%emt 0:01:29]} Nh3 {[%emt 0:01:27]} 73. Bb8 {[%emt 0:00:58]} Nf2 {[%emt 0:00:20]} 74. b4 {[%emt 0:02:36]} d3 {[%emt 0:01:24]} 75. Bf4 {[%emt 0:00:06]} cxb4 {[%emt 0:00:15]} 76. e5 {[%emt 0:01:06]} Ne4 {[%emt 0:01:24]} 77. Kxd3 {[%emt 0:00:16]} Kd5 {[%emt 0:00:15]} 78. Kc2 {[%emt 0:01:10]} Nc5 {[%emt 0:01:00]} 79. Be3 {[%emt 0:00:21]} Ne6 {[%emt 0:03:09]} 80. Bd2 {[%emt 0:00:37]} Nd4+ {[%emt 0:01:39]} 81. Kd3 {[%emt 0:00:05]} Nc6 {[%emt 0:01:03]} 82. e6 {[%emt 0:00:53]} Kxe6 {[%emt 0:00:33]} 83. Ke4 {[%emt 0:00:20]} b3 {[%emt 0:00:22]} 84. Bc3 {[%emt 0:00:00]} Ne7 {[%emt 0:01:57]} 85. Bb2 {[%emt 0:00:33]} Nd5 {[%emt 0:00:40]} 86. Ba1 {[%emt 0:00:36]} Kd6 {[%emt 0:02:26]} 87. Kf5 {[%emt 0:00:32]} Ne3+ {[%emt 0:00:06]} 88. Kg5 {[%emt 0:00:09]} Nf1 {[%emt 0:00:06]} 89. Kxh5 {[%emt 0:00:32]} Nxg3+ {[%emt 0:00:06]} 90. Kg4 {[%emt 0:00:02]} Ne4 {[%emt 0:00:47]} 91. Kf4 {[%emt 0:00:32]} Kd5 {[%emt 0:00:11]} 92. Ke3 {[%emt 0:00:04]} Nc5 {[%emt 0:00:16]} 93. Kd2 {[%emt 0:00:24]} Kc4 {[%emt 0:00:02]} 94. Bh8 {[%emt 0:00:20]} Kb4 {[%emt 0:00:47]} 95. Kc1 {[%emt 0:00:18]} 1/2-1/2

[Event "95th Caplin Hastings Congress"]
[Site "Hastings"]
[Date "2019.12.28"]
[Round "1.19"]
[White "Merry, Alan B"]
[Black "Eames, Robert S"]
[Result "1-0"]
[ECO "E04"]
[WhiteElo "2420"]
[BlackElo "2150"]
[Annotator "NA"]
[PlyCount "89"]
[EventDate "2019.12.28"]
[EventType "swiss"]
[EventCountry "ENG"]
[SourceTitle "playchess.com"]
[Source "ChessBase"]
[SourceQuality "1"]
[TimeControl "40/6600+30:3000+30"]

1. d4 {[%emt 0:09:35]} Nf6 {[%emt 0:12:11]} 2. c4 {[%emt 0:00:03]} e6 {[%emt 0:00:10]} 3. g3 {[%emt 0:00:03]} d5 {[%emt 0:00:56]} 4. Nf3 {[%emt 0:00:06]} dxc4 {[%emt 0:00:17]} 5. Bg2 {[%emt 0:00:02]} Bb4+ {[%emt 0:00:32]} 6. Bd2 {[%emt 0:00:04]} c5 {[%emt 0:00:12]} 7. Bxb4 {[%emt 0:00:40]} cxb4 {[%emt 0:00:08]} 8. Ne5 {[%emt 0:00:04]} O-O {[%emt 0:01:08]} 9. a3 {[%emt 0:00:22]} Nc6 {[%emt 0:02:07]} 10. Bxc6 {[%emt 0:00:08]} bxc6 {[%emt 0:00:10]} 11. axb4 {[%emt 0:00:02]} Qb6 {[%emt 0:02:01]} 12. O-O {[%emt 0:27:53]} Qxb4 {[%emt 0:03:39]} 13. Qd2 {[%emt 0:03:53]} Qb7 {[%emt 0:07:40]} 14. Na3 {[%emt 0:08:11]} Rd8 {[%emt 0:00:54]} 15. Rfd1 {[%emt 0:12:25]} c5 {[%emt 0:04:46]} 16. Qa5 {[%emt 0:02:31]} Rd5 {[%emt 0:12:11]} 17. dxc5 {[%emt 0:01:26]} Bd7 {[%emt 0:00:46]} 18. Naxc4 {[%emt 0:01:05]} Be8 {[%emt 0:01:17]} 19. b4 {[%emt 0:05:59]} Ne4 {[%emt 0:02:21]} 20. Qa3 {[%emt 0:12:25]} f6 {[%emt 0:03:30]} 21. Nd3 {[%emt 0:06:47]} Bb5 {[%emt 0:06:42]} 22. Ne3 {[%emt 0:14:17]} Rd4 {[%emt 0:07:50]} 23. Qb3 {[%emt 0:05:17]} Ng5 {[%emt 0:06:05]} 24. h4 {[%emt 0:09:47]} Nf7 {[%emt 0:08:54]} 25. Nf4 {[%emt 0:00:00]} Rxd1+ {[%emt 0:01:49]} 26. Rxd1 {[%emt 0:00:00]} e5 {[%emt 0:00:16]} 27. Ne6 {[%emt 0:00:00]} Bxe2 {[%emt 0:08:41]} 28. Rd2 {[%emt 0:00:00]} Bb5 {[%emt 0:03:52]} 29. Nf5 {[%emt 0:00:00]} Qe4 {[%emt 0:05:11]} 30. Ne7+ {[%emt 0:00:00]} Kh8 {[%emt 0:00:11]} 31. Nd8 {[%emt 0:00:00]} Bc4 {[%emt 0:05:53]} 32. Qa4 {[%emt 0:01:53]} Nd6 {[%emt 0:05:49]} 33. cxd6 {[%emt 0:00:28]} Rxd8 {[%emt 0:00:19]} 34. Qd1 {[%emt 0:01:00]} Ba6 {[%emt 0:03:28]} 35. f3 {[%emt 0:00:31]} Qxb4 {[%emt 0:01:01]} 36. Kg2 {[%emt 0:00:50]} Bb7 {[%emt 0:00:43]} 37. Qc1 {[%emt 0:03:00]} Rxd6 {[%emt 0:02:59]} 38. Rb2 {[%emt 0:00:00]} Qa3 {[%emt 0:00:47]} 39. Rxb7 {[%emt 0:00:00]} Qd3 {[%emt 0:01:26]} 40. Rxa7 {[%emt 0:02:40]} h5 41. Qe1 {[%emt 0:03:57]} Rd4 {[%emt 0:06:11]} 42. Ra2 {[%emt 0:12:52]} e4 {[%emt 0:10:03]} 43. Qe2 {[%emt 0:01:46]} e3 {[%emt 0:10:27]} 44. Qxd3 {[%emt 0:01:47]} Rxd3 {[%emt 0:00:07]} 45. Re2 {[%emt 0:00:14]} 1-0

[Event "95th Caplin Hastings Congress"]
[Site "Hastings"]
[Date "2019.12.28"]
[Round "1.20"]
[White "Gutierrez Carmona, Juan Alejandr"]
[Black "Cherniaev, Alexander"]
[Result "0-1"]
[ECO "B00"]
[WhiteElo "2146"]
[BlackElo "2419"]
[Annotator "ChessBase"]
[PlyCount "96"]
[EventDate "2019.12.28"]
[EventType "swiss"]
[EventCountry "ENG"]
[SourceTitle "playchess.com"]
[Source "ChessBase"]
[SourceQuality "1"]
[TimeControl "40/6600+30:3000+30"]

1. e4 {[%emt 0:09:36]} b6 {[%emt 0:09:35]} 2. d4 {[%emt 0:01:48]} Bb7 {[%emt 0:00:05]} 3. Nc3 {[%emt 0:01:20]} e6 {[%emt 0:00:19]} 4. Be3 {[%emt 0:02:45]} Bb4 {[%emt 0:01:13]} 5. f3 {[%emt 0:04:36]} d5 {[%emt 0:09:05]} 6. e5 {[%emt 0:01:19]} Nh6 {[%emt 0:08:43]} 7. a3 {[%emt 0:01:12]} Bf8 {[%emt 0:00:08]} 8. Qd2 {[%emt 0:05:53]} Nf5 {[%emt 0:03:36]} 9. Bf2 {[%emt 0:00:10]} c5 {[%emt 0:03:42]} 10. Bb5+ {[%emt 0:04:24]} Nd7 {[%emt 0:04:07]} 11. Nge2 {[%emt 0:00:16]} Be7 {[%emt 0:06:38]} 12. O-O {[%emt 0:13:29]} O-O {[%emt 0:01:13]} 13. Rfe1 {[%emt 0:14:00]} Rc8 {[%emt 0:06:18]} 14. Bd3 {[%emt 0:06:14]} cxd4 {[%emt 0:06:53]} 15. Nxd4 {[%emt 0:03:41]} Nxd4 {[%emt 0:00:10]} 16. Bxd4 {[%emt 0:00:01]} f6 {[%emt 0:08:41]} 17. exf6 {[%emt 0:08:39]} Bxf6 {[%emt 0:00:06]} 18. Bb5 {[%emt 0:07:51]} a6 {[%emt 0:13:38]} 19. Bxd7 {[%emt 0:09:38]} Qxd7 {[%emt 0:00:02]} 20. Bxf6 {[%emt 0:01:37]} gxf6 {[%emt 0:02:07]} 21. Rad1 {[%emt 0:03:31]} Qc6 {[%emt 0:09:12]} 22. Qe3 {[%emt 0:05:27]} Rce8 {[%emt 0:02:23]} 23. Rd4 {[%emt 0:00:33]} Kh8 {[%emt 0:00:46]} 24. Rb4 {[%emt 0:03:41]} b5 {[%emt 0:00:09]} 25. Rd1 {[%emt 0:00:53]} Rc8 {[%emt 0:05:17]} 26. Rd2 {[%emt 0:02:00]} Qd6 {[%emt 0:01:07]} 27. Rh4 {[%emt 0:02:21]} Rf7 {[%emt 0:03:56]} 28. Rh6 {[%emt 0:04:15]} Qc5 {[%emt 0:03:44]} 29. Qxc5 {[%emt 0:01:59]} Rxc5 {[%emt 0:00:02]} 30. Ne2 {[%emt 0:00:20]} e5 {[%emt 0:01:25]} 31. c3 {[%emt 0:00:12]} Kg7 {[%emt 0:01:00]} 32. Rh4 {[%emt 0:00:06]} Rc4 {[%emt 0:00:04]} 33. Rxc4 {[%emt 0:01:25]} bxc4 {[%emt 0:00:02]} 34. b4 {[%emt 0:00:01]} cxb3 {[%emt 0:00:12]} 35. Rb2 {[%emt 0:00:00]} Bc6 {[%emt 0:00:27]} 36. Rxb3 {[%emt 0:00:03]} Bb5 {[%emt 0:00:08]} 37. Kf2 {[%emt 0:00:10]} Rc7 {[%emt 0:00:35]} 38. Ke1 {[%emt 0:01:10]} Kg6 {[%emt 0:04:29]} 39. Kd2 {[%emt 0:00:17]} Bc4 {[%emt 0:04:56]} 40. Rb6 {[%emt 0:00:17]} Bxe2 {[%emt 0:01:51]} 41. Kxe2 {[%emt 0:50:03]} Rxc3 {[%emt 0:50:07]} 42. Rxa6 {[%emt 0:00:18]} Rc2+ {[%emt 0:00:05]} 43. Kf1 {[%emt 0:00:48]} Kg5 {[%emt 0:00:00]} 44. a4 {[%emt 0:00:00]} d4 {[%emt 0:00:00]} 45. a5 {[%emt 0:00:00]} Kf4 {[%emt 0:00:00]} 46. Rxf6+ {[%emt 0:00:00]} Ke3 {[%emt 0:00:00]} 47. g4 {[%emt 0:00:00]} d3 {[%emt 0:00:00]} 48. Rf5 {[%emt 0:00:00]} Rc5 {[%emt 0:00:00]} 0-1

[Event "95th Caplin Hastings Congress"]
[Site "Hastings"]
[Date "2019.12.28"]
[Round "1.21"]
[White "Lalic, Bogdan"]
[Black "Boino, Claudio"]
[Result "1/2-1/2"]
[ECO "D34"]
[WhiteElo "2414"]
[BlackElo "2146"]
[Annotator "NA"]
[PlyCount "29"]
[EventDate "2019.12.28"]
[EventType "swiss"]
[EventCountry "ENG"]
[SourceTitle "playchess.com"]
[Source "ChessBase"]
[SourceQuality "1"]
[TimeControl "40/6600+30:3000+30"]

1. d4 {[%emt 0:09:34]} d5 {[%emt 0:09:38]} 2. c4 {[%emt 0:00:10]} e6 {[%emt 0:00:04]} 3. Nf3 {[%emt 0:00:13]} c5 {[%emt 0:00:08]} 4. cxd5 {[%emt 0:00:28]} exd5 {[%emt 0:00:07]} 5. g3 {[%emt 0:00:38]} Nf6 {[%emt 0:00:30]} 6. Bg2 {[%emt 0:00:11]} Nc6 {[%emt 0:00:28]} 7. O-O {[%emt 0:00:16]} Be7 {[%emt 0:00:16]} 8. Nc3 {[%emt 0:00:18]} O-O {[%emt 0:00:09]} 9. Bg5 {[%emt 0:00:17]} cxd4 {[%emt 0:00:53]} 10. Nxd4 {[%emt 0:00:09]} h6 {[%emt 0:00:17]} 11. Be3 {[%emt 0:00:29]} Re8 {[%emt 0:00:13]} 12. Qb3 {[%emt 0:03:21]} Na5 {[%emt 0:03:43]} 13. Qc2 {[%emt 0:00:09]} Bg4 {[%emt 0:08:44]} 14. Rad1 {[%emt 0:02:34]} Rc8 {[%emt 0:06:01]} 15. h3 {[%emt 0:00:45]} 1/2-1/2

[Event "95th Caplin Hastings Congress"]
[Site "Hastings"]
[Date "2019.12.28"]
[Round "1.22"]
[White "Thompson, Ian D"]
[Black "Murphy, Conor E"]
[Result "1/2-1/2"]
[ECO "D60"]
[WhiteElo "2141"]
[BlackElo "2407"]
[Annotator "NA"]
[PlyCount "54"]
[EventDate "2019.12.28"]
[EventType "swiss"]
[EventCountry "ENG"]
[SourceTitle "playchess.com"]
[Source "ChessBase"]
[SourceQuality "1"]
[TimeControl "40/6600+30:3000+30"]

1. Nf3 {[%emt 0:09:34]} d5 {[%emt 0:09:58]} 2. c4 {[%emt 0:00:17]} e6 {[%emt 0:01:06]} 3. d4 {[%emt 0:00:29]} Nf6 {[%emt 0:00:37]} 4. Bg5 {[%emt 0:00:59]} Nbd7 {[%emt 0:02:31]} 5. e3 {[%emt 0:03:08]} h6 {[%emt 0:01:51]} 6. Bh4 {[%emt 0:00:45]} Be7 {[%emt 0:01:29]} 7. Nc3 {[%emt 0:02:52]} O-O {[%emt 0:00:29]} 8. Bd3 {[%emt 0:01:14]} c5 {[%emt 0:03:54]} 9. O-O {[%emt 0:02:55]} b6 {[%emt 0:03:57]} 10. cxd5 {[%emt 0:07:02]} Nxd5 {[%emt 0:04:49]} 11. Bxe7 {[%emt 0:03:22]} Nxe7 {[%emt 0:03:13]} 12. Qa4 {[%emt 0:13:15]} cxd4 {[%emt 0:12:54]} 13. Qxd4 {[%emt 0:05:40]} Nc5 {[%emt 0:05:33]} 14. Bc2 {[%emt 0:04:09]} Nc6 {[%emt 0:08:01]} 15. Qf4 {[%emt 0:07:24]} Ba6 {[%emt 0:14:04]} 16. Rfd1 {[%emt 0:03:08]} Qb8 {[%emt 0:01:24]} 17. Qh4 {[%emt 0:04:28]} Ne5 {[%emt 0:07:15]} 18. b4 {[%emt 0:10:48]} Ncd7 {[%emt 0:11:50]} 19. Nxe5 {[%emt 0:07:59]} Nxe5 {[%emt 0:00:44]} 20. Be4 {[%emt 0:02:20]} Bb7 {[%emt 0:01:15]} 21. Bxb7 {[%emt 0:00:57]} Qxb7 {[%emt 0:00:05]} 22. Nb5 {[%emt 0:01:46]} Qc6 {[%emt 0:03:41]} 23. a4 {[%emt 0:02:57]} Qc2 {[%emt 0:01:50]} 24. a5 {[%emt 0:14:12]} Nd3 {[%emt 0:06:32]} 25. Nd4 {[%emt 0:00:27]} Qb2 {[%emt 0:06:21]} 26. Rab1 {[%emt 0:01:01]} Qa2 {[%emt 0:00:22]} 27. Ra1 {[%emt 0:01:00]} Qb2 {[%emt 0:00:45]} 1/2-1/2

[Event "95th Caplin Hastings Congress"]
[Site "Hastings"]
[Date "2019.12.28"]
[Round "1.23"]
[White "Wadsworth, Matthew J"]
[Black "De Boer, Bas"]
[Result "1-0"]
[ECO "A11"]
[WhiteElo "2401"]
[BlackElo "2138"]
[Annotator "NA"]
[PlyCount "51"]
[EventDate "2019.12.28"]
[EventType "swiss"]
[EventCountry "ENG"]
[SourceTitle "playchess.com"]
[Source "ChessBase"]
[SourceQuality "1"]
[TimeControl "40/6600+30:3000+30"]

1. Nf3 {[%emt 0:09:34]} d5 {[%emt 0:09:39]} 2. g3 {[%emt 0:00:14]} Nf6 {[%emt 0:00:31]} 3. Bg2 {[%emt 0:00:11]} c6 {[%emt 0:00:15]} 4. c4 {[%emt 0:00:09]} dxc4 {[%emt 0:01:04]} 5. O-O {[%emt 0:00:25]} Nbd7 {[%emt 0:00:13]} 6. Qc2 {[%emt 0:00:56]} Nb6 {[%emt 0:00:08]} 7. Na3 {[%emt 0:01:04]} Be6 {[%emt 0:01:37]} 8. Ng5 {[%emt 0:03:50]} Qd7 {[%emt 0:00:35]} 9. Nxe6 {[%emt 0:02:25]} Qxe6 {[%emt 0:00:03]} 10. e4 {[%emt 0:04:13]} g6 {[%emt 0:02:47]} 11. b3 {[%emt 0:01:52]} cxb3 {[%emt 0:01:44]} 12. axb3 {[%emt 0:00:04]} Bg7 {[%emt 0:00:10]} 13. Bb2 {[%emt 0:00:14]} O-O {[%emt 0:01:20]} 14. d4 {[%emt 0:00:48]} Rfd8 {[%emt 0:04:49]} 15. Nc4 {[%emt 0:03:21]} Ne8 {[%emt 0:13:23]} 16. Rfd1 {[%emt 0:08:31]} Nd6 {[%emt 0:07:02]} 17. Na5 {[%emt 0:03:58]} Qd7 {[%emt 0:02:16]} 18. Rd2 {[%emt 0:08:06]} f5 {[%emt 0:07:41]} 19. e5 {[%emt 0:02:58]} Nb5 {[%emt 0:03:05]} 20. Nxb7 {[%emt 0:00:41]} Nxd4 {[%emt 0:14:27]} 21. Bxd4 {[%emt 0:03:07]} Qxb7 {[%emt 0:00:08]} 22. Bxc6 {[%emt 0:02:38]} Qc8 {[%emt 0:03:40]} 23. Bxa8 {[%emt 0:02:09]} Qxc2 {[%emt 0:00:08]} 24. Rxc2 {[%emt 0:00:15]} Rxd4 {[%emt 0:00:07]} 25. Rxa7 {[%emt 0:01:46]} Bxe5 {[%emt 0:01:49]} 26. Rxe7 {[%emt 0:00:53]} 1-0

[Event "95th Caplin Hastings Congress"]
[Site "Hastings"]
[Date "2019.12.28"]
[Round "1.24"]
[White "Sugden, John N"]
[Black "Vaishali R"]
[Result "0-1"]
[ECO "E88"]
[WhiteElo "2065"]
[BlackElo "2376"]
[Annotator "ChessBase"]
[PlyCount "78"]
[EventDate "2019.12.28"]
[EventType "swiss"]
[EventCountry "ENG"]
[SourceTitle "playchess.com"]
[Source "ChessBase"]
[SourceQuality "1"]
[TimeControl "40/6600+30:3000+30"]

1. d4 {[%emt 0:00:22]} d6 {[%emt 0:00:43]} 2. e4 {[%emt 0:10:40]} Nf6 {[%emt 0:09:45]} 3. f3 {[%emt 0:01:04]} g6 {[%emt 0:01:26]} 4. c4 {[%emt 0:00:33]} Bg7 {[%emt 0:01:33]} 5. Nc3 {[%emt 0:01:02]} O-O {[%emt 0:00:15]} 6. Be3 {[%emt 0:02:42]} e5 {[%emt 0:04:01]} 7. d5 {[%emt 0:03:45]} c6 {[%emt 0:00:33]} 8. Bd3 {[%emt 0:04:33]} Na6 {[%emt 0:12:03]} 9. Nge2 {[%emt 0:00:00]} Nc5 {[%emt 0:01:48]} 10. Bc2 {[%emt 0:00:07]} a5 {[%emt 0:01:17]} 11. dxc6 {[%emt 0:13:33]} bxc6 {[%emt 0:00:08]} 12. Bxc5 {[%emt 0:00:56]} dxc5 {[%emt 0:00:03]} 13. Qxd8 {[%emt 0:01:05]} Rxd8 {[%emt 0:00:03]} 14. Nc1 {[%emt 0:17:28]} Nh5 {[%emt 0:16:59]} 15. g3 {[%emt 0:00:00]} Bh3 {[%emt 0:01:06]} 16. Ke2 {[%emt 0:00:09]} Bh6 {[%emt 0:04:31]} 17. Nd3 {[%emt 0:02:43]} Ng7 {[%emt 0:04:13]} 18. Rad1 {[%emt 0:05:25]} Ne6 {[%emt 0:06:53]} 19. Kf2 {[%emt 0:02:03]} Rab8 {[%emt 0:10:54]} 20. b3 {[%emt 0:03:47]} Nd4 {[%emt 0:12:21]} 21. Bb1 {[%emt 0:00:31]} Rd6 {[%emt 0:04:37]} 22. Nxc5 {[%emt 0:16:15]} Rf6 {[%emt 0:09:28]} 23. Rd3 {[%emt 0:00:00]} Bf8 {[%emt 0:06:48]} 24. N5a4 {[%emt 0:04:36]} Rd8 {[%emt 0:04:11]} 25. Ne2 {[%emt 0:03:23]} Bg4 {[%emt 0:00:43]} 26. Ng1 {[%emt 0:06:25]} g5 {[%emt 0:03:03]} 27. h3 {[%emt 0:04:45]} Bh5 {[%emt 0:00:16]} 28. g4 {[%emt 0:00:24]} Bg6 {[%emt 0:00:05]} 29. Ke3 {[%emt 0:01:21]} Ba3 {[%emt 0:00:59]} 30. Rc3 {[%emt 0:03:49]} Bb4 {[%emt 0:00:19]} 31. Rc1 {[%emt 0:05:06]} Nxb3 {[%emt 0:00:41]} 32. axb3 {[%emt 0:03:16]} Bd2+ {[%emt 0:00:07]} 33. Kf2 {[%emt 0:00:18]} Bxc1 {[%emt 0:00:03]} 34. Ne2 {[%emt 0:01:36]} Ba3 {[%emt 0:01:45]} 35. Ke3 {[%emt 0:01:39]} Rfd6 {[%emt 0:00:00]} 36. Nec3 {[%emt 0:00:38]} Rd2 {[%emt 0:01:59]} 37. h4 {[%emt 0:01:23]} gxh4 {[%emt 0:00:21]} 38. Nd5 {[%emt 0:00:46]} Rg2 {[%emt 0:00:19]} 39. Nf6+ {[%emt 0:00:43]} Kg7 {[%emt 0:00:06]} 0-1